{"text_format":"1","workbook":"xlsx","n_sheets":14,"sheets":["Sheet1","Sheet2","Sheet3","Sheet4","Sheet5","Sheet6","Sheet7","Sheet8","Sheet9","Sheet10","Sheet11","Sheet12","Sheet13","Sheet14"],"not_rendered":{"charts":0,"images":0,"macros":0,"external_links":0,"defined_names":1,"comments":0,"pivot_tables":0},"unopened":[],"bounds":{"document_bytes":16777216,"sheet_cells":100000,"rows_first":2000,"rows_last":500,"rows_between":2000,"halvings":0,"cell_chars":16384,"cell_head_chars":4096},"cells_cut":0,"cells_raw":0,"read":"whole","date_system":"1900"}

{"sheet":"Sheet1","index":0,"n_rows":23,"n_cols":1,"rows_kept":23,"cut":false,"hidden":false,"merged":[]}
[{"$f":"IFERROR(INDEX(Sheet_Names,ROWS($A$2:A2)*ROUNDUP(RAND(),0)),\"\")","v":"Sheet1"}]
[{"$f":"IFERROR(INDEX(Sheet_Names,ROWS($A$2:A3)*ROUNDUP(RAND(),0)),\"\")","v":"Sheet2"}]
[{"$f":"IFERROR(INDEX(Sheet_Names,ROWS($A$2:A4)*ROUNDUP(RAND(),0)),\"\")","v":"Sheet3"}]
[{"$f":"IFERROR(INDEX(Sheet_Names,ROWS($A$2:A5)*ROUNDUP(RAND(),0)),\"\")","v":"Sheet4"}]
[{"$f":"IFERROR(INDEX(Sheet_Names,ROWS($A$2:A6)*ROUNDUP(RAND(),0)),\"\")","v":"Sheet5"}]
[{"$f":"IFERROR(INDEX(Sheet_Names,ROWS($A$2:A7)*ROUNDUP(RAND(),0)),\"\")","v":"Sheet6"}]
[{"$f":"IFERROR(INDEX(Sheet_Names,ROWS($A$2:A8)*ROUNDUP(RAND(),0)),\"\")","v":"Sheet7"}]
[{"$f":"IFERROR(INDEX(Sheet_Names,ROWS($A$2:A9)*ROUNDUP(RAND(),0)),\"\")","v":"Sheet8"}]
[{"$f":"IFERROR(INDEX(Sheet_Names,ROWS($A$2:A10)*ROUNDUP(RAND(),0)),\"\")","v":"Sheet9"}]
[{"$f":"IFERROR(INDEX(Sheet_Names,ROWS($A$2:A11)*ROUNDUP(RAND(),0)),\"\")","v":"Sheet10"}]
[{"$f":"IFERROR(INDEX(Sheet_Names,ROWS($A$2:A12)*ROUNDUP(RAND(),0)),\"\")","v":"Sheet11"}]
[{"$f":"IFERROR(INDEX(Sheet_Names,ROWS($A$2:A13)*ROUNDUP(RAND(),0)),\"\")","v":"Sheet12"}]
[{"$f":"IFERROR(INDEX(Sheet_Names,ROWS($A$2:A14)*ROUNDUP(RAND(),0)),\"\")","v":"Sheet13"}]
[{"$f":"IFERROR(INDEX(Sheet_Names,ROWS($A$2:A15)*ROUNDUP(RAND(),0)),\"\")","v":"Sheet14"}]
[{"$f":"IFERROR(INDEX(Sheet_Names,ROWS($A$2:A16)*ROUNDUP(RAND(),0)),\"\")","v":""}]
[{"$f":"IFERROR(INDEX(Sheet_Names,ROWS($A$2:A17)*ROUNDUP(RAND(),0)),\"\")","v":""}]
[{"$f":"IFERROR(INDEX(Sheet_Names,ROWS($A$2:A18)*ROUNDUP(RAND(),0)),\"\")","v":""}]
[{"$f":"IFERROR(INDEX(Sheet_Names,ROWS($A$2:A19)*ROUNDUP(RAND(),0)),\"\")","v":""}]
[{"$f":"IFERROR(INDEX(Sheet_Names,ROWS($A$2:A20)*ROUNDUP(RAND(),0)),\"\")","v":""}]
[{"$f":"IFERROR(INDEX(Sheet_Names,ROWS($A$2:A21)*ROUNDUP(RAND(),0)),\"\")","v":""}]
[{"$f":"IFERROR(INDEX(Sheet_Names,ROWS($A$2:A22)*ROUNDUP(RAND(),0)),\"\")","v":""}]
[{"$f":"IFERROR(INDEX(Sheet_Names,ROWS($A$2:A23)*ROUNDUP(RAND(),0)),\"\")","v":""}]
[{"$f":"IFERROR(INDEX(Sheet_Names,ROWS($A$2:A24)*ROUNDUP(RAND(),0)),\"\")","v":""}]

{"sheet":"Sheet2","index":1,"n_rows":0,"n_cols":0,"rows_kept":0,"cut":false,"hidden":false,"merged":[]}

{"sheet":"Sheet3","index":2,"n_rows":0,"n_cols":0,"rows_kept":0,"cut":false,"hidden":false,"merged":[]}

{"sheet":"Sheet4","index":3,"n_rows":0,"n_cols":0,"rows_kept":0,"cut":false,"hidden":false,"merged":[]}

{"sheet":"Sheet5","index":4,"n_rows":0,"n_cols":0,"rows_kept":0,"cut":false,"hidden":false,"merged":[]}

{"sheet":"Sheet6","index":5,"n_rows":0,"n_cols":0,"rows_kept":0,"cut":false,"hidden":false,"merged":[]}

{"sheet":"Sheet7","index":6,"n_rows":0,"n_cols":0,"rows_kept":0,"cut":false,"hidden":false,"merged":[]}

{"sheet":"Sheet8","index":7,"n_rows":0,"n_cols":0,"rows_kept":0,"cut":false,"hidden":false,"merged":[]}

{"sheet":"Sheet9","index":8,"n_rows":0,"n_cols":0,"rows_kept":0,"cut":false,"hidden":false,"merged":[]}

{"sheet":"Sheet10","index":9,"n_rows":0,"n_cols":0,"rows_kept":0,"cut":false,"hidden":false,"merged":[]}

{"sheet":"Sheet11","index":10,"n_rows":0,"n_cols":0,"rows_kept":0,"cut":false,"hidden":false,"merged":[]}

{"sheet":"Sheet12","index":11,"n_rows":0,"n_cols":0,"rows_kept":0,"cut":false,"hidden":false,"merged":[]}

{"sheet":"Sheet13","index":12,"n_rows":0,"n_cols":0,"rows_kept":0,"cut":false,"hidden":false,"merged":[]}

{"sheet":"Sheet14","index":13,"n_rows":0,"n_cols":0,"rows_kept":0,"cut":false,"hidden":false,"merged":[]}